[Event "44th Chess Olympiad Women 2022"]
[Site "Chennai"]
[Date "2022.08.10"]
[Round "11.4"]
[White "Pratyusha, Bodda"]
[Black "Nakhbayeva, Guliskhan"]
[Result "1-0"]
[ECO "D00"]
[WhiteElo "2310"]
[BlackElo "2329"]
[Annotator "ChessBase"]
[PlyCount "81"]
[EventDate "2022.07.29"]
[EventType "team-tourn"]
[EventCountry "IND"]
[SourceTitle "playchess.com"]
[Source "ChessBase"]
[SourceQuality "1"]
[WhiteTeam "India"]
[BlackTeam "Kazakhstan"]
[WhiteTeamCountry "IND"]
[BlackTeamCountry "KAZ"]
[TimeControl "40/5400+30:1800+30"]

1. d4 {[%emt 0:00:28]} Nf6 {[%emt 0:00:07]} 2. Bf4 {[%emt 0:00:13]} d5 {[%emt 0:00:06]} 3. e3 {[%emt 0:00:03]} c5 {[%emt 0:00:07]} 4. c3 {[%emt 0:00:04]} Nc6 {[%emt 0:00:07]} 5. Nd2 {[%emt 0:01:19]} Bf5 {[%emt 0:00:24]} 6. Ngf3 {[%emt 0:00:24]} e6 {[%emt 0:01:34]} 7. Qb3 {[%emt 0:00:19]} Qc8 {[%emt 0:01:06]} 8. c4 {[%emt 0:01:30]} cxd4 {[%emt 0:12:11]} 9. Nxd4 {[%emt 0:01:04]} Bb4 {[%emt 0:12:18]} 10. Nxf5 {[%emt 0:12:07]} dxc4 {[%emt 0:05:30]} 11. Qxb4 {[%emt 0:06:20]} Nxb4 {[%emt 0:00:23]} 12. Nd6+ {[%emt 0:00:16]} Kd7 {[%emt 0:00:52]} 13. Nxc8 {[%emt 0:00:19]} Nc2+ {[%emt 0:00:10]} 14. Kd1 {[%emt 0:01:33]} Nxa1 {[%emt 0:00:05]} 15. Nd6 {[%emt 0:00:36]} Ng4 {[%emt 0:13:03]} 16. Bg3 {[%emt 0:02:11]} Nxf2+ {[%emt 0:00:48]} 17. Bxf2 {[%emt 0:00:27]} Kxd6 {[%emt 0:00:02]} 18. Bxc4 {[%emt 0:08:14]} Rhc8 {[%emt 0:08:01]} 19. Bd3 {[%emt 0:00:33]} b5 {[%emt 0:06:11]} 20. Ne4+ {[%emt 0:02:21]} Ke7 {[%emt 0:03:59]} 21. Kd2 {[%emt 0:01:10]} f5 {[%emt 0:00:12]} 22. Ng3 {[%emt 0:00:53]} Rc7 {[%emt 0:12:15]} 23. Rxa1 {[%emt 0:00:33]} Rd8 {[%emt 0:00:02]} 24. Ke2 {[%emt 0:00:29]} Rcd7 {[%emt 0:00:05]} 25. Rd1 {[%emt 0:01:30]} g6 {[%emt 0:01:46]} 26. Nxf5+ {[%emt 0:01:32]} Kf7 {[%emt 0:04:27]} 27. Bh4 {[%emt 0:01:40]} Rb8 {[%emt 0:01:02]} 28. Nd4 {[%emt 0:00:07]} Kg8 {[%emt 0:01:02]} 29. Nxe6 {[%emt 0:01:19]} a6 {[%emt 0:00:44]} 30. b4 {[%emt 0:00:55]} Re8 {[%emt 0:00:37]} 31. Nc5 {[%emt 0:00:16]} Rd4 {[%emt 0:00:38]} 32. Bf6 {[%emt 0:03:00]} Rxb4 {[%emt 0:00:39]} 33. Bc2 {[%emt 0:00:20]} Rc8 {[%emt 0:01:43]} 34. Bb3+ {[%emt 0:00:53]} Kf8 {[%emt 0:00:00]} 35. Be6 {[%emt 0:01:44]} Ra8 {[%emt 0:00:07]} 36. a3 {[%emt 0:00:14]} Rc4 {[%emt 0:01:07]} 37. Bxc4 {[%emt 0:00:13]} bxc4 {[%emt 0:00:02]} 38. Rd8+ {[%emt 0:00:20]} Rxd8 {[%emt 0:00:02]} 39. Bxd8 {[%emt 0:00:06]} Ke8 {[%emt 0:00:05]} 40. Bg5 {[%emt 0:00:18]} a5 {[%emt 0:00:16]} 41. e4 {[%emt 0:30:10]} 1-0

[Event "44th Chess Olympiad Women 2022"]
[Site "Chennai"]
[Date "2022.08.10"]
[Round "11.4"]
[White "Balabayeva, Xeniya"]
[Black "Sahithi Varshini M"]
[Result "1/2-1/2"]
[ECO "B51"]
[WhiteElo "2198"]
[BlackElo "2312"]
[Annotator "ChessBase"]
[PlyCount "152"]
[EventDate "2022.07.29"]
[EventType "team-tourn"]
[EventCountry "IND"]
[SourceTitle "playchess.com"]
[Source "ChessBase"]
[SourceQuality "1"]
[WhiteTeam "Kazakhstan"]
[BlackTeam "India"]
[WhiteTeamCountry "KAZ"]
[BlackTeamCountry "IND"]
[TimeControl "40/5400+30:1800+30"]

1. e4 {[%emt 0:00:03]} c5 {[%emt 0:02:10]} 2. Nf3 {[%emt 0:00:10]} Nc6 {[%emt 0:00:37]} 3. Bb5 {[%emt 0:00:15]} d6 {[%emt 0:00:09]} 4. O-O {[%emt 0:00:48]} Bd7 {[%emt 0:01:13]} 5. Re1 {[%emt 0:00:34]} Nf6 {[%emt 0:04:05]} 6. c3 {[%emt 0:00:15]} a6 {[%emt 0:01:03]} 7. Bf1 {[%emt 0:03:40]} Bg4 {[%emt 0:03:26]} 8. h3 {[%emt 0:00:45]} Bxf3 {[%emt 0:01:16]} 9. Qxf3 {[%emt 0:00:08]} g6 {[%emt 0:03:58]} 10. d3 {[%emt 0:01:57]} Bg7 {[%emt 0:00:27]} 11. Be3 {[%emt 0:01:25]} Nd7 {[%emt 0:12:55]} 12. Nd2 {[%emt 0:03:58]} O-O {[%emt 0:02:56]} 13. Qd1 {[%emt 0:00:54]} b5 {[%emt 0:03:24]} 14. Nf3 {[%emt 0:02:09]} Qb6 {[%emt 0:07:25]} 15. Qd2 {[%emt 0:03:06]} Qb7 {[%emt 0:00:41]} 16. Bh6 {[%emt 0:01:58]} Rfd8 {[%emt 0:06:44]} 17. Bxg7 {[%emt 0:06:31]} Kxg7 {[%emt 0:00:06]} 18. d4 {[%emt 0:01:25]} Nb6 {[%emt 0:03:38]} 19. Rad1 {[%emt 0:04:45]} cxd4 {[%emt 0:04:13]} 20. Nxd4 {[%emt 0:07:43]} e5 {[%emt 0:03:57]} 21. Nf3 {[%emt 0:09:10]} Rd7 {[%emt 0:06:55]} 22. Nh2 {[%emt 0:14:52]} h5 {[%emt 0:03:11]} 23. Be2 {[%emt 0:06:36]} Rh8 {[%emt 0:01:53]} 24. Bf3 {[%emt 0:04:35]} Nd8 {[%emt 0:00:32]} 25. h4 {[%emt 0:00:54]} Ne6 {[%emt 0:02:02]} 26. g3 {[%emt 0:01:23]} Rdd8 {[%emt 0:00:35]} 27. Bg2 {[%emt 0:04:13]} Qe7 {[%emt 0:00:07]} 28. Nf1 {[%emt 0:01:00]} Nc4 {[%emt 0:01:45]} 29. Qe2 {[%emt 0:00:39]} Nc5 {[%emt 0:03:23]} 30. b3 {[%emt 0:01:30]} Nb6 {[%emt 0:00:45]} 31. Ne3 {[%emt 0:00:09]} Qb7 {[%emt 0:02:42]} 32. Qc2 {[%emt 0:01:23]} Qc7 {[%emt 0:00:11]} 33. Qd2 {[%emt 0:01:40]} Ne6 {[%emt 0:03:40]} 34. Rc1 {[%emt 0:02:57]} Rb8 {[%emt 0:01:10]} 35. Red1 {[%emt 0:01:02]} Rhd8 {[%emt 0:00:08]} 36. Qe2 {[%emt 0:03:08]} Qe7 {[%emt 0:04:19]} 37. Bh3 {[%emt 0:05:46]} Nc7 {[%emt 0:01:16]} 38. Qf3 {[%emt 0:00:59]} a5 {[%emt 0:00:41]} 39. Rd2 {[%emt 0:01:25]} b4 {[%emt 0:03:39]} 40. cxb4 {[%emt 0:00:50]} axb4 {[%emt 0:00:05]} 41. Qe2 {[%emt 0:04:41]} d5 {[%emt 0:06:24]} 42. Rdc2 {[%emt 0:02:09]} Nba8 {[%emt 0:02:24]} 43. Nxd5 {[%emt 0:02:18]} Nxd5 {[%emt 0:03:29]} 44. exd5 {[%emt 0:00:07]} Rxd5 {[%emt 0:00:32]} 45. Bg2 {[%emt 0:01:30]} Ra5 {[%emt 0:00:05]} 46. Be4 {[%emt 0:01:05]} Ra7 {[%emt 0:02:47]} 47. Bxa8 {[%emt 0:00:43]} Rbxa8 {[%emt 0:00:29]} 48. Re1 {[%emt 0:03:34]} Ra5 {[%emt 0:00:11]} 49. Rd1 {[%emt 0:02:39]} R8a6 {[%emt 0:03:37]} 50. Re1 {[%emt 0:03:35]} Ra8 {[%emt 0:01:48]} 51. Rd1 {[%emt 0:03:30]} R8a7 {[%emt 0:00:07]} 52. Re1 {[%emt 0:01:04]} R7a6 {[%emt 0:03:11]} 53. Qe4 {[%emt 0:02:12]} Ra7 {[%emt 0:08:19]} 54. Qe2 {[%emt 0:01:38]} Qf6 {[%emt 0:02:19]} 55. Kg2 {[%emt 0:02:58]} R7a6 {[%emt 0:00:11]} 56. Rd1 {[%emt 0:00:54]} Qe6 {[%emt 0:00:59]} 57. Re1 {[%emt 0:00:40]} Rc6 {[%emt 0:02:29]} 58. Rxc6 {[%emt 0:01:26]} Qxc6+ {[%emt 0:00:04]} 59. Qe4 {[%emt 0:00:11]} Qd6 {[%emt 0:00:19]} 60. Re2 {[%emt 0:01:48]} Rd5 {[%emt 0:00:09]} 61. Rc2 {[%emt 0:01:20]} f5 {[%emt 0:01:43]} 62. Qc4 {[%emt 0:00:24]} Rd4 {[%emt 0:00:50]} 63. Qc8 {[%emt 0:01:25]} Qd8 {[%emt 0:01:00]} 64. Rc7+ {[%emt 0:00:34]} Kh6 {[%emt 0:00:29]} 65. Qxd8 {[%emt 0:00:21]} Rxd8 {[%emt 0:00:05]} 66. Rb7 {[%emt 0:01:01]} Rd4 {[%emt 0:00:06]} 67. Kf3 {[%emt 0:00:48]} Rd3+ {[%emt 0:00:48]} 68. Kg2 {[%emt 0:01:25]} Rd4 {[%emt 0:00:04]} 69. Kf3 {[%emt 0:00:03]} f4 {[%emt 0:01:18]} 70. gxf4 {[%emt 0:01:03]} Rxf4+ {[%emt 0:00:05]} 71. Kg3 {[%emt 0:00:04]} Rg4+ {[%emt 0:00:04]} 72. Kh3 {[%emt 0:00:12]} Rf4 {[%emt 0:00:41]} 73. Kg3 {[%emt 0:00:07]} Rg4+ {[%emt 0:00:05]} 74. Kh3 {[%emt 0:00:04]} Rf4 {[%emt 0:00:32]} 75. Kg3 {[%emt 0:00:01]} Rg4+ {[%emt 0:00:06]} 76. Kh3 {[%emt 0:00:06]} Rf4 {[%emt 0:00:04]} 1/2-1/2

[Event "44th Chess Olympiad Women 2022"]
[Site "Chennai"]
[Date "2022.08.10"]
[Round "11.5"]
[White "Padmini, Rout"]
[Black "Repkova, Eva"]
[Result "0-1"]
[ECO "C54"]
[WhiteElo "2374"]
[BlackElo "2303"]
[Annotator "ChessBase"]
[PlyCount "104"]
[EventDate "2022.07.29"]
[EventType "team-tourn"]
[EventCountry "IND"]
[SourceTitle "playchess.com"]
[Source "ChessBase"]
[SourceQuality "1"]
[WhiteTeam "India"]
[BlackTeam "Slovakia"]
[WhiteTeamCountry "IND"]
[BlackTeamCountry "SVK"]
[TimeControl "40/5400+30:1800+30"]

1. e4 {[%emt 0:00:06]} e5 {[%emt 0:00:10]} 2. Nf3 {[%emt 0:00:23]} Nc6 {[%emt 0:00:07]} 3. Bc4 {[%emt 0:00:20]} Bc5 {[%emt 0:00:32]} 4. c3 {[%emt 0:00:10]} Nf6 {[%emt 0:01:39]} 5. d4 {[%emt 0:00:29]} exd4 {[%emt 0:00:42]} 6. e5 {[%emt 0:00:11]} d5 {[%emt 0:05:24]} 7. Bb5 {[%emt 0:00:24]} Ne4 {[%emt 0:06:01]} 8. cxd4 {[%emt 0:00:52]} Bb6 {[%emt 0:05:51]} 9. Nc3 {[%emt 0:01:40]} O-O {[%emt 0:06:49]} 10. Be3 {[%emt 0:00:18]} Bg4 {[%emt 0:07:07]} 11. h3 {[%emt 0:01:22]} Bh5 {[%emt 0:08:12]} 12. Qc2 {[%emt 0:02:38]} Bg6 {[%emt 0:08:27]} 13. Qb3 {[%emt 0:00:47]} Ba5 {[%emt 0:04:41]} 14. O-O {[%emt 0:03:02]} Bxc3 {[%emt 0:00:04]} 15. bxc3 {[%emt 0:02:00]} Na5 {[%emt 0:00:05]} 16. Qb2 {[%emt 0:03:34]} c6 {[%emt 0:04:22]} 17. Be2 {[%emt 0:00:44]} f6 {[%emt 0:05:03]} 18. exf6 {[%emt 0:05:02]} Qxf6 {[%emt 0:00:39]} 19. Ne5 {[%emt 0:00:35]} Bf5 {[%emt 0:02:36]} 20. c4 {[%emt 0:07:13]} dxc4 {[%emt 0:03:38]} 21. Nxc4 {[%emt 0:01:55]} Nxc4 {[%emt 0:00:08]} 22. Bxc4+ {[%emt 0:00:04]} Kh8 {[%emt 0:00:33]} 23. Rfe1 {[%emt 0:08:07]} Qg6 {[%emt 0:05:00]} 24. Kh2 {[%emt 0:01:02]} Nd6 {[%emt 0:01:33]} 25. Bf1 {[%emt 0:08:11]} Be4 {[%emt 0:03:06]} 26. f3 {[%emt 0:00:33]} Bd5 {[%emt 0:00:17]} 27. Bf2 {[%emt 0:00:16]} Rf7 {[%emt 0:01:58]} 28. Bg3 {[%emt 0:02:49]} Raf8 {[%emt 0:00:52]} 29. Be5 {[%emt 0:10:23]} Bxf3 {[%emt 0:07:14]} 30. Re3 {[%emt 0:13:10]} Bxg2 {[%emt 0:09:39]} 31. Rg3 {[%emt 0:01:25]} Bxf1 {[%emt 0:00:23]} 32. Rxg6 {[%emt 0:00:38]} hxg6 {[%emt 0:01:27]} 33. Kg1 {[%emt 0:11:51]} Ne4 {[%emt 0:00:36]} 34. Qc2 {[%emt 0:03:38]} Ng5 {[%emt 0:00:32]} 35. Qxg6 {[%emt 0:00:18]} Nf3+ {[%emt 0:01:18]} 36. Kh1 {[%emt 0:00:06]} Bc4 {[%emt 0:00:13]} 37. Qh5+ {[%emt 0:01:56]} Kg8 {[%emt 0:00:14]} 38. Kg2 {[%emt 0:02:00]} Rf5 {[%emt 0:00:10]} 39. Qg4 {[%emt 0:00:44]} Rg5 {[%emt 0:00:04]} 40. Kg3 {[%emt 0:01:43]} Rxg4+ {[%emt 0:00:06]} 41. hxg4 {[%emt 0:30:04]} Nxe5 {[%emt 0:30:34]} 42. dxe5 {[%emt 0:05:03]} Kf7 {[%emt 0:00:07]} 43. Kf4 {[%emt 0:00:00]} Ke6+ {[%emt 0:00:00]} 44. Kg5 {[%emt 0:00:00]} Kxe5 {[%emt 0:00:00]} 45. a4 {[%emt 0:00:00]} a5 {[%emt 0:00:00]} 46. Kg6 {[%emt 0:00:00]} Rf7 {[%emt 0:00:00]} 47. g5 {[%emt 0:00:00]} Re7 {[%emt 0:00:00]} 48. Kh7 {[%emt 0:00:00]} Bd3+ {[%emt 0:00:00]} 49. Kg8 {[%emt 0:00:00]} g6 {[%emt 0:00:00]} 50. Kf8 {[%emt 0:00:00]} Rh7 {[%emt 0:00:00]} 51. Ke8 {[%emt 0:00:00]} Kf4 {[%emt 0:00:00]} 52. Kd8 {[%emt 0:00:00]} Kxg5 {[%emt 0:00:04]} 0-1

[Event "44th Chess Olympiad Women 2022"]
[Site "Chennai"]
[Date "2022.08.10"]
[Round "11.5"]
[White "Divya Deshmukh"]
[Black "Sucikova, Svetlana"]
[Result "1-0"]
[ECO "B12"]
[WhiteElo "2319"]
[BlackElo "2188"]
[Annotator "ChessBase"]
[PlyCount "65"]
[EventDate "2022.07.29"]
[EventType "team-tourn"]
[EventCountry "IND"]
[SourceTitle "playchess.com"]
[Source "ChessBase"]
[SourceQuality "1"]
[WhiteTeam "India"]
[BlackTeam "Slovakia"]
[WhiteTeamCountry "IND"]
[BlackTeamCountry "SVK"]
[TimeControl "40/5400+30:1800+30"]

1. e4 {[%emt 0:00:06]} c6 {[%emt 0:01:12]} 2. d4 {[%emt 0:00:05]} d5 {[%emt 0:00:44]} 3. e5 {[%emt 0:00:02]} Bf5 {[%emt 0:01:10]} 4. h4 {[%emt 0:00:03]} h5 {[%emt 0:00:58]} 5. Bg5 {[%emt 0:00:02]} Qb6 {[%emt 0:04:12]} 6. Bd3 {[%emt 0:00:05]} Qxd4 {[%emt 0:01:35]} 7. Nf3 {[%emt 0:00:04]} Qg4 {[%emt 0:00:47]} 8. Bxf5 {[%emt 0:00:01]} Qxf5 {[%emt 0:00:38]} 9. c4 {[%emt 0:00:03]} Qe4+ {[%emt 0:03:34]} 10. Be3 {[%emt 0:00:01]} e6 {[%emt 0:05:15]} 11. cxd5 {[%emt 0:00:04]} Bb4+ {[%emt 0:04:48]} 12. Nc3 {[%emt 0:00:19]} Qxd5 {[%emt 0:09:05]} 13. Qc2 {[%emt 0:00:04]} Ne7 {[%emt 0:00:59]} 14. O-O {[%emt 0:04:35]} Bxc3 {[%emt 0:01:42]} 15. Qxc3 {[%emt 0:00:31]} Na6 {[%emt 0:08:16]} 16. Ng5 {[%emt 0:20:16]} Rd8 {[%emt 0:09:05]} 17. Bxa7 {[%emt 0:05:56]} Qd3 {[%emt 0:01:20]} 18. Rfd1 {[%emt 0:12:51]} Qxd1+ {[%emt 0:04:09]} 19. Rxd1 {[%emt 0:00:04]} Rxd1+ {[%emt 0:00:08]} 20. Kh2 {[%emt 0:00:01]} Rd7 {[%emt 0:03:36]} 21. Ne4 {[%emt 0:06:24]} Nf5 {[%emt 0:05:26]} 22. Nc5 {[%emt 0:01:37]} Nxc5 {[%emt 0:02:39]} 23. Bxc5 {[%emt 0:01:00]} f6 {[%emt 0:17:35]} 24. exf6 {[%emt 0:01:39]} Rg8 {[%emt 0:02:08]} 25. fxg7 {[%emt 0:02:00]} Kf7 {[%emt 0:06:07]} 26. Bf8 {[%emt 0:04:00]} Nxg7 {[%emt 0:02:32]} 27. Bxg7 {[%emt 0:00:20]} Rxg7 {[%emt 0:00:07]} 28. Qf3+ {[%emt 0:00:29]} Kg6 {[%emt 0:00:55]} 29. Qe4+ {[%emt 0:00:03]} Kf6 {[%emt 0:00:22]} 30. Qf4+ {[%emt 0:00:05]} Ke7 {[%emt 0:01:24]} 31. Qh6 {[%emt 0:00:20]} Rf7 {[%emt 0:00:39]} 32. Qxh5 {[%emt 0:00:16]} Rxf2 {[%emt 0:01:02]} 33. Qc5+ {[%emt 0:00:03]} 1-0

[Event "44th Chess Olympiad Women 2022"]
[Site "Chennai"]
[Date "2022.08.10"]
[Round "11.5"]
[White "Hagarova, Zuzana"]
[Black "Gomes, Mary Ann"]
[Result "1/2-1/2"]
[ECO "B42"]
[WhiteElo "2293"]
[BlackElo "2324"]
[Annotator "ChessBase"]
[PlyCount "116"]
[EventDate "2022.07.29"]
[EventType "team-tourn"]
[EventCountry "IND"]
[SourceTitle "playchess.com"]
[Source "ChessBase"]
[SourceQuality "1"]
[WhiteTeam "Slovakia"]
[BlackTeam "India"]
[WhiteTeamCountry "SVK"]
[BlackTeamCountry "IND"]
[TimeControl "40/5400+30:1800+30"]

1. e4 {[%emt 0:00:06]} c5 {[%emt 0:00:26]} 2. Nf3 {[%emt 0:00:35]} e6 {[%emt 0:00:07]} 3. d4 {[%emt 0:00:07]} cxd4 {[%emt 0:00:05]} 4. Nxd4 {[%emt 0:00:04]} a6 {[%emt 0:00:05]} 5. Bd3 {[%emt 0:01:00]} Qc7 {[%emt 0:00:07]} 6. O-O {[%emt 0:01:31]} Nf6 {[%emt 0:00:05]} 7. Qe2 {[%emt 0:01:08]} d6 {[%emt 0:13:15]} 8. c4 {[%emt 0:13:08]} g6 {[%emt 0:00:00]} 9. Nc3 {[%emt 0:02:04]} Bg7 {[%emt 0:00:00]} 10. Be3 {[%emt 0:02:22]} O-O {[%emt 0:00:00]} 11. Rac1 {[%emt 0:11:06]} Nbd7 {[%emt 0:00:00]} 12. Rfd1 {[%emt 0:03:52]} Ne5 {[%emt 0:00:00]} 13. f3 {[%emt 0:00:41]} b6 {[%emt 0:00:00]} 14. b3 {[%emt 0:05:19]} Bb7 {[%emt 0:00:00]} 15. Bb1 {[%emt 0:06:11]} Rac8 {[%emt 0:00:00]} 16. Qf2 {[%emt 0:02:46]} Rfe8 {[%emt 0:11:09]} 17. h3 {[%emt 0:08:54]} Ned7 {[%emt 0:06:08]} 18. Bd3 {[%emt 0:04:40]} Qb8 {[%emt 0:01:39]} 19. Bf1 {[%emt 0:04:54]} d5 {[%emt 0:20:31]} 20. cxd5 {[%emt 0:05:58]} exd5 {[%emt 0:00:06]} 21. Nxd5 {[%emt 0:00:43]} Bxd5 {[%emt 0:07:12]} 22. exd5 {[%emt 0:07:28]} Rxc1 {[%emt 0:06:34]} 23. Bxc1 {[%emt 0:01:18]} Nxd5 {[%emt 0:01:34]} 24. Nf5 {[%emt 0:02:26]} gxf5 {[%emt 0:01:01]} 25. Rxd5 {[%emt 0:00:23]} Nf6 {[%emt 0:00:15]} 26. Rd1 {[%emt 0:04:27]} b5 {[%emt 0:00:15]} 27. Qc5 {[%emt 0:04:32]} Re5 {[%emt 0:04:57]} 28. Qc6 {[%emt 0:03:42]} Re6 {[%emt 0:03:36]} 29. Qc5 {[%emt 0:00:11]} Re5 {[%emt 0:01:21]} 30. Qf2 {[%emt 0:00:33]} Rd5 {[%emt 0:01:12]} 31. Rxd5 {[%emt 0:02:34]} Nxd5 {[%emt 0:00:07]} 32. Qc5 {[%emt 0:00:15]} Qd8 {[%emt 0:00:44]} 33. a4 {[%emt 0:01:08]} bxa4 {[%emt 0:01:45]} 34. bxa4 {[%emt 0:00:26]} a5 {[%emt 0:05:50]} 35. Kh1 {[%emt 0:00:51]} Nb6 {[%emt 0:03:30]} 36. Be3 {[%emt 0:00:30]} Nxa4 {[%emt 0:00:32]} 37. Qxf5 {[%emt 0:00:27]} Nb2 {[%emt 0:00:09]} 38. Qg4 {[%emt 0:00:39]} Kh8 {[%emt 0:00:48]} 39. Bb5 {[%emt 0:00:21]} h6 {[%emt 0:01:24]} 40. Qe4 {[%emt 0:00:37]} Kg8 {[%emt 0:06:02]} 41. Bg1 {[%emt 0:04:45]} Qf8 {[%emt 0:04:34]} 42. Bc6 {[%emt 0:03:32]} Qb4 {[%emt 0:02:49]} 43. Qe8+ {[%emt 0:03:16]} Qf8 {[%emt 0:06:05]} 44. Qd7 {[%emt 0:00:40]} Nc4 {[%emt 0:05:14]} 45. Bd5 {[%emt 0:00:22]} Ne5 {[%emt 0:00:35]} 46. Qa7 {[%emt 0:01:24]} Qd8 {[%emt 0:00:32]} 47. Bb3 {[%emt 0:01:14]} Nd7 {[%emt 0:11:23]} 48. Qb7 {[%emt 0:04:29]} Bf6 {[%emt 0:04:19]} 49. Qe4 {[%emt 0:07:46]} Nf8 {[%emt 0:01:30]} 50. Qf5 {[%emt 0:01:29]} Kg7 {[%emt 0:01:47]} 51. Qg4+ {[%emt 0:00:46]} Ng6 {[%emt 0:00:06]} 52. Qc4 {[%emt 0:01:53]} Ne5 {[%emt 0:00:22]} 53. Qb5 {[%emt 0:01:34]} Qd3 {[%emt 0:00:31]} 54. Qb7 {[%emt 0:00:47]} Qd7 {[%emt 0:00:56]} 55. Qe4 {[%emt 0:00:24]} Qd3 {[%emt 0:00:34]} 56. Qb7 {[%emt 0:00:40]} Qd7 {[%emt 0:00:47]} 57. Qe4 {[%emt 0:00:16]} Qd3 {[%emt 0:00:24]} 58. Qb7 {[%emt 0:00:21]} Qd7 {[%emt 0:00:06]} 1/2-1/2

[Event "44th Chess Olympiad Women 2022"]
[Site "Chennai"]
[Date "2022.08.10"]
[Round "11.5"]
[White "Borosova, Zuzana"]
[Black "Vantika Agrawal"]
[Result "1/2-1/2"]
[ECO "B90"]
[WhiteElo "2277"]
[BlackElo "2371"]
[Annotator "ChessBase"]
[PlyCount "66"]
[EventDate "2022.07.29"]
[EventType "team-tourn"]
[EventCountry "IND"]
[SourceTitle "playchess.com"]
[Source "ChessBase"]
[SourceQuality "1"]
[WhiteTeam "Slovakia"]
[BlackTeam "India"]
[WhiteTeamCountry "SVK"]
[BlackTeamCountry "IND"]
[TimeControl "40/5400+30:1800+30"]

1. e4 {[%emt 0:00:04]} c5 {[%emt 0:02:16]} 2. Nf3 {[%emt 0:00:12]} d6 {[%emt 0:00:05]} 3. d4 {[%emt 0:00:06]} cxd4 {[%emt 0:00:04]} 4. Nxd4 {[%emt 0:00:04]} Nf6 {[%emt 0:00:11]} 5. Nc3 {[%emt 0:00:05]} a6 {[%emt 0:00:04]} 6. h3 {[%emt 0:01:07]} e5 {[%emt 0:00:11]} 7. Nde2 {[%emt 0:00:22]} h5 {[%emt 0:00:20]} 8. g3 {[%emt 0:00:54]} Be7 {[%emt 0:00:52]} 9. Bg2 {[%emt 0:00:24]} b5 {[%emt 0:00:22]} 10. Nd5 {[%emt 0:01:46]} Nxd5 {[%emt 0:03:34]} 11. Qxd5 {[%emt 0:00:07]} Ra7 {[%emt 0:00:03]} 12. Be3 {[%emt 0:00:34]} Rb7 {[%emt 0:00:31]} 13. g4 {[%emt 0:02:17]} Bg5 {[%emt 0:12:04]} 14. Bxg5 {[%emt 0:00:35]} Qxg5 {[%emt 0:00:21]} 15. Ng3 {[%emt 0:02:24]} Rb6 {[%emt 0:23:05]} 16. gxh5 {[%emt 0:06:34]} Be6 {[%emt 0:02:42]} 17. Qd2 {[%emt 0:01:20]} Qxd2+ {[%emt 0:04:50]} 18. Kxd2 {[%emt 0:00:01]} Nd7 {[%emt 0:00:26]} 19. Bf3 {[%emt 0:09:20]} Ke7 {[%emt 0:03:01]} 20. h4 {[%emt 0:18:54]} Nf6 {[%emt 0:07:18]} 21. Rhg1 {[%emt 0:00:21]} Rd8 {[%emt 0:06:11]} 22. Rad1 {[%emt 0:08:54]} b4 {[%emt 0:12:37]} 23. Kc1 {[%emt 0:10:13]} a5 {[%emt 0:02:03]} 24. b3 {[%emt 0:05:56]} a4 {[%emt 0:03:02]} 25. Nf1 {[%emt 0:04:49]} Kf8 {[%emt 0:01:03]} 26. Ne3 {[%emt 0:01:58]} Ra8 {[%emt 0:03:40]} 27. Rg5 {[%emt 0:06:31]} axb3 {[%emt 0:05:44]} 28. axb3 {[%emt 0:00:20]} Ra2 {[%emt 0:01:26]} 29. Rdg1 {[%emt 0:01:29]} Rc6 {[%emt 0:01:31]} 30. Kb1 {[%emt 0:09:31]} Rca6 {[%emt 0:00:15]} 31. Kc1 {[%emt 0:00:30]} Rc6 {[%emt 0:00:58]} 32. Kb1 {[%emt 0:03:39]} Rca6 {[%emt 0:00:26]} 33. Kc1 {[%emt 0:00:05]} Rc6 {[%emt 0:00:22]} 1/2-1/2

[Event "44th Chess Olympiad Women 2022"]
[Site "Chennai"]
[Date "2022.08.10"]
[Round "11.6"]
[White "Sukandar, Irine Kharisma"]
[Black "Paehtz, Elisabeth"]
[Result "1/2-1/2"]
[ECO "B90"]
[WhiteElo "2373"]
[BlackElo "2484"]
[Annotator "ChessBase"]
[PlyCount "39"]
[EventDate "2022.07.29"]
[EventType "team-tourn"]
[EventCountry "IND"]
[SourceTitle "playchess.com"]
[Source "ChessBase"]
[SourceQuality "1"]
[WhiteTeam "Indonesia"]
[BlackTeam "Germany"]
[WhiteTeamCountry "INA"]
[BlackTeamCountry "GER"]
[TimeControl "40/5400+30:1800+30"]

1. e4 {[%emt 0:00:26]} c5 {[%emt 0:00:03]} 2. Nf3 {[%emt 0:00:14]} d6 {[%emt 0:00:03]} 3. d4 {[%emt 0:05:27]} cxd4 {[%emt 0:00:04]} 4. Nxd4 {[%emt 0:00:04]} Nf6 {[%emt 0:00:04]} 5. Nc3 {[%emt 0:00:07]} a6 {[%emt 0:00:15]} 6. Bd3 {[%emt 0:00:42]} g6 {[%emt 0:01:36]} 7. h3 {[%emt 0:05:33]} Bg7 {[%emt 0:00:34]} 8. Be3 {[%emt 0:00:12]} Nc6 {[%emt 0:00:41]} 9. Qd2 {[%emt 0:01:03]} O-O {[%emt 0:14:21]} 10. O-O-O {[%emt 0:13:06]} Bd7 {[%emt 0:07:09]} 11. f4 {[%emt 0:02:03]} Rc8 {[%emt 0:07:12]} 12. Nf3 {[%emt 0:02:15]} Nb4 {[%emt 0:05:03]} 13. a3 {[%emt 0:20:32]} Nxd3+ {[%emt 0:02:26]} 14. Qxd3 {[%emt 0:00:27]} Qa5 {[%emt 0:21:40]} 15. Bd2 {[%emt 0:07:53]} Qc5 {[%emt 0:00:22]} 16. Be3 {[%emt 0:02:04]} Qa5 {[%emt 0:00:44]} 17. Bd2 {[%emt 0:00:27]} Qc5 {[%emt 0:07:08]} 18. Be3 {[%emt 0:01:11]} Qa5 {[%emt 0:03:39]} 19. Bd2 {[%emt 0:00:16]} Qc5 {[%emt 0:06:55]} 20. Be3 {[%emt 0:01:04]} 1/2-1/2